bitfinex/quotes_SOLUSD_20260308
["timestamp","ask_amount","ask_price","bid_price","bid_amount"]
[1772993595170,0.45433292,81.599,81.558,104.22030945]
[1772993595171,0.45433292,81.599,81.563,0.47864287]
[1772993596558,0.45433292,81.597,81.561,12.26076188]
[1772993597468,0.45433292,81.595,81.555,0.47864287]
[1772993599974,0.45433292,81.593,81.556,12.26151356]
[1772993600176,0.45433292,81.593,81.556,12.74015643]
[1772993601276,0.45433292,81.579,81.552,12.2621036]
[1772993602079,0.45433292,81.579,81.545,0.47864287]
[1772993602080,0.45433292,81.577,81.547,0.47864287]
[1772993604159,0.45433292,81.577,81.548,12.26271643]
[1772993604466,0.45433292,81.577,81.549,0.47864287]
[1772993606265,0.45433292,81.577,81.546,30.65754298]
[1772993606266,0.45433292,81.577,81.551,0.47864287]
[1772993607655,4.8123683,81.59,81.55,12.26241569]
[1772993607656,0.45433292,81.575,81.55,12.26241569]
[1772993608258,0.45433292,81.573,81.543,0.47864287]
[1772993609281,0.28432314,81.599,81.539,12.26406995]
[1772993609282,0.45433292,81.567,81.539,12.26406995]
[1772993609582,0.45433292,81.567,81.531,0.47864287]
[1772993613081,0.49795329,81.565,81.533,0.4849353]
[1772993616093,0.49795329,81.563,81.535,0.4849353]
[1772993619076,0.49795329,81.563,81.537,0.4849353]
[1772993622189,0.49795329,81.563,81.539,0.4849353]
[1772993623598,0.49795329,81.563,81.54,12.26391954]
[1772993623895,0.49795329,81.563,81.54,12.74885484]
[1772993624679,0.49795329,81.563,81.541,0.4849353]
[1772993631104,0.49795329,81.563,81.542,12.26361874]
[1772993631979,0.49795329,81.563,81.543,0.4849353]
[1772993634200,0.49795329,81.563,81.544,12.26331796]
[1772993635398,0.49795329,81.563,81.544,12.74825326]
[1772993635699,0.49795329,81.561,81.532,12.26512289]
[1772993635903,12.26061155,81.562,81.512,0.4849353]
[1772993635904,0.49795329,81.559,81.512,0.4849353]
[1772993636084,0.49795329,81.547,81.514,0.4849353]
[1772993638403,0.49795329,81.545,81.516,0.4849353]
[1772993639180,0.49795329,81.539,81.515,12.26768079]
[1772993639591,0.49795329,81.539,81.515,12.75261609]
[1772993639987,0.49795329,81.539,81.516,0.4849353]
[1772993641407,0.49795329,81.55,81.518,0.4849353]
[1772993642812,0.46985545,81.554,81.518,0.4849353]
[1772993644005,30.65078103,81.564,81.52,0.47622427]
[1772993644207,0.46985545,81.563,81.52,0.47622427]
[1772993648906,0.49650352,81.561,81.522,0.49796233]
[1772993652810,0.49650352,81.559,81.524,0.49796233]
[1772993654713,0.49650352,81.557,81.526,0.49796233]
[1772993656713,34.0795251,81.588,81.527,12.76383743]
[1772993656714,0.49650352,81.555,81.527,12.76383743]
[1772993657109,0.49650352,81.555,81.528,0.49796233]
[1772993658726,0.49650352,81.549,81.515,0.49796233]
[1772993660416,0.49650352,81.547,81.517,0.49796233]
[1772993662867,0.49650352,81.545,81.516,12.2675303]
[1772993663039,12.26301719,81.546,81.516,12.2675303]
[1772993663040,0.49650352,81.539,81.516,12.2675303]
[1772993664222,0.49650352,81.537,81.516,12.2675303]
[1772993664815,0.49650352,81.537,81.512,0.49796233]
[1772993665015,0.49650352,81.529,81.505,0.49796233]
[1772993666414,0.49650352,81.527,81.507,0.49796233]
[1772993667929,4.81152867,81.52,81.468,0.49796233]
[1772993668135,104.25865958,81.528,81.468,0.49796233]
[1772993668136,0.49650352,81.509,81.468,0.49796233]
[1772993668536,0.49650352,81.507,81.471,0.49796233]
[1772993669036,0.49650352,81.499,81.471,0.49796233]
[1772993670536,0.49650352,81.499,81.452,0.49796233]
[1772993670740,0.49650352,81.497,81.454,0.49796233]
[1772993671120,0.49650352,81.502,81.455,0.49796233]
[1772993672832,0.49607304,81.518,81.458,0.48618709]
[1772993675229,0.49607304,81.516,81.46,0.28432314]
[1772993675430,0.49607304,81.516,81.461,0.48618709]
[1772993676530,0.49607304,81.516,81.46,0.28432314]
[1772993676531,0.49607304,81.514,81.463,0.48618709]
[1772993679146,0.49607304,81.512,81.465,0.28432314]
[1772993679335,0.49607304,81.512,81.466,0.48618709]
[1772993680442,12.26798179,81.513,81.466,0.48618709]
[1772993680443,0.49607304,81.509,81.466,0.48618709]
[1772993681141,4.81152867,81.5,81.466,0.48618709]
[1772993681347,0.49607304,81.499,81.468,0.48618709]
[1772993681635,0.49607304,81.499,81.464,30.68840223]
[1772993681636,0.49607304,81.499,81.464,12.27536089]
[1772993682447,0.49607304,81.489,81.464,12.27536089]
[1772993682756,0.49607304,81.488,81.464,0.48618709]
[1772993683839,0.49607304,81.488,81.465,12.7613973]
[1772993684456,0.49607304,81.488,81.466,0.48618709]
[1772993685259,0.49607304,81.488,81.467,12.27490885]
[1772993686742,0.49607304,81.486,81.462,0.48618709]
[1772993690844,0.49607304,81.486,81.464,0.48618709]
[1772993691049,0.49607304,81.495,81.464,0.48618709]
[1772993692553,0.49607304,81.508,81.464,0.48618709]
[1772993692950,0.49607304,81.508,81.466,0.48618709]
[1772993693256,69.56798865,81.52,81.467,0.48618709]
[1772993693257,0.49607304,81.506,81.467,0.48618709]
[1772993693463,69.56798865,81.52,81.467,0.48618709]
[1772993693464,0.49607304,81.51,81.467,0.48618709]
[1772993695965,0.49607304,81.509,81.47,0.48618709]
[1772993697253,0.49607304,81.509,81.472,0.48618709]
[1772993699553,0.49607304,81.507,81.474,0.48618709]
[1772993700749,34.0795251,81.53,81.475,0.49803652]
[1772993701078,12.26557421,81.529,81.475,0.49803652]
[1772993701261,4.82080019,81.5,81.475,0.49803652]
[1772993701458,12.2700892,81.499,81.454,0.49803652]
[1772993702271,4.82080019,81.51,81.455,0.49803652]
[1772993702471,42.93487145,81.519,81.455,0.49803652]
[1772993703759,12.26707884,81.519,81.458,0.49803652]
[1772993705868,4.82080019,81.52,81.461,0.49803652]
[1772993707775,4.82080019,81.53,81.463,0.49803652]
[1772993711479,4.82080019,81.53,81.462,104.34312929]
[1772993711480,42.92950974,81.529,81.466,0.49803652]
[1772993712290,34.0795251,81.528,81.466,0.49803652]
[1772993713067,42.92950974,81.529,81.466,0.49803652]
[1772993713284,42.92950974,81.529,81.469,0.49803652]
[1772993714874,12.26557421,81.529,81.469,0.49803652]
[1772993718079,12.26557421,81.529,81.472,0.49803652]
[1772993718787,42.92950974,81.529,81.472,0.49803652]
[1772993719878,12.26557421,81.529,81.472,0.49803652]
[1772993720078,12.26557421,81.529,81.475,0.49803652]
[1772993721271,12.26557421,81.529,81.478,0.49803652]
[1772993723382,12.26557421,81.529,81.48,0.49803652]
[1772993723383,4.82080019,81.52,81.48,0.49803652]
[1772993724184,42.92950974,81.529,81.48,0.49803652]
[1772993725166,42.92950974,81.529,81.481,42.95479927]
[1772993725374,42.92950974,81.529,81.482,0.49803652]
[1772993725581,12.26557421,81.529,81.482,0.49803652]
[1772993730199,42.92529771,81.537,81.484,0.49803652]
[1772993732310,42.92529771,81.537,81.486,0.49803652]
[1772993735106,4.82080019,81.53,81.488,0.49803652]
[1772993738718,42.92529771,81.537,81.49,0.49803652]
[1772993741907,4.82080019,81.53,81.492,0.49803652]
[1772993744809,12.26557421,81.529,81.493,12.2709926]
[1772993745007,12.26557421,81.529,81.494,0.49803652]
[1772993748205,12.26557421,81.529,81.496,0.49803652]
[1772993749927,42.92529771,81.537,81.497,12.27039032]
[1772993750103,42.92529771,81.537,81.498,0.49803652]
[1772993752628,42.92529771,81.537,81.5,0.49803652]
[1772993754534,4.81663806,81.53,81.5,0.49803652]
[1772993754734,4.81663806,81.52,81.479,0.49803652]
[1772993755721,42.92950974,81.529,81.479,0.49803652]
[1772993756940,42.92950974,81.529,81.481,0.49803652]
[1772993760230,34.0795251,81.528,81.483,0.49803652]
[1772993762827,42.93056287,81.527,81.485,0.49803652]
[1772993764241,4.81663806,81.52,81.471,0.49803652]
[1772993764427,4.81663806,81.52,81.472,0.49803652]
[1772993765854,42.93477594,81.519,81.474,0.49803652]
[1772993766435,4.81663806,81.51,81.474,0.49803652]
[1772993768341,4.81663806,81.5,81.476,0.49803652]
[1772993769861,4.81663806,81.49,81.455,0.49803652]
[1772993770346,12.27310104,81.479,81.456,12.27656648]
[1772993771037,12.27310104,81.479,81.456,12.774603]
[1772993771350,12.27310104,81.479,81.457,0.49803652]
[1772993771553,12.27310104,81.479,81.447,0.49803652]
[1772993771745,12.27310104,81.479,81.435,0.28432314]
[1772993771746,12.27310104,81.479,81.45,0.59803652]
[1772993772651,12.27310104,81.479,81.451,0.49803652]
[1772993773343,4.81663806,81.5,81.451,0.49803652]
[1772993774655,4.81663806,81.51,81.453,0.49803652]
[1772993777659,12.26858383,81.509,81.456,0.49803652]
[1772993779254,42.94004342,81.509,81.456,0.49803652]
[1772993781263,42.94004342,81.509,81.459,0.49803652]
[1772993782872,12.26858383,81.509,81.459,0.49803652]
[1772993784353,12.26858383,81.509,81.462,0.49803652]
[1772993787377,12.26858383,81.509,81.464,0.49803652]
[1772993790890,12.26858383,81.509,81.466,0.49803652]
[1772993791886,42.94004342,81.509,81.468,0.49803652]
[1772993794091,0.49463403,81.479,81.45,0.1]
[1772993794267,4.81663806,81.49,81.451,12.2773201]
[1772993794465,0.49463403,81.489,81.451,42.97062036]
[1772993795990,0.49463403,81.487,81.453,12.27701864]
[1772993796176,0.49463403,81.487,81.454,0.49089185]
[1772993799184,12.27204673,81.486,81.455,12.2767172]
[1772993799379,0.49463403,81.485,81.456,0.49089185]
[1772993800986,12.27204673,81.486,81.456,0.49089185]
[1772993801289,12.76668076,81.486,81.458,0.49089185]
[1772993801490,0.49463403,81.485,81.458,0.49089185]
[1772993803189,0.49463403,81.49,81.458,0.49089185]
[1772993805678,0.49463403,81.488,81.46,0.49089185]
[1772993807594,0.49463403,81.467,81.45,0.1]
[1772993807788,0.49463403,81.467,81.439,12.27912916]
[1772993808096,0.49463403,81.467,81.435,12.27965617]
[1772993808397,0.49463403,81.459,81.435,12.27965617]
[1772993808601,0.49463403,81.459,81.431,12.28033549]
[1772993808794,0.30196348,81.439,81.41,0.1]
[1772993809094,4.82068203,81.44,81.401,12.28486136]
[1772993809297,104.33544457,81.468,81.401,42.99701477]
[1772993809298,0.49463403,81.439,81.401,42.99701477]
[1772993809604,4.82068203,81.46,81.402,0.49089185]
[1772993809788,12.27611436,81.459,81.405,0.49089185]
[1772993810096,4.82068203,81.47,81.405,0.49089185]
[1772993811399,30.68295752,81.479,81.405,0.49089185]
[1772993811604,0.2982213,81.469,81.405,0.49089185]
[1772993812681,3.97815716,81.489,81.397,3.79875952]
[1772993812682,0.2982213,81.472,81.411,0.49089185]
[1772993812896,0.2982213,81.477,81.411,0.49089185]
[1772993813586,0.2982213,81.483,81.411,0.49089185]
[1772993813799,0.2982213,81.483,81.414,0.49089185]
[1772993814003,0.2982213,81.483,81.416,0.49089185]
[1772993816302,0.2982213,81.487,81.422,0.49089185]
[1772993816785,0.2982213,81.493,81.422,0.49089185]
[1772993818508,0.2982213,81.491,81.427,0.49089185]
[1772993818702,0.2982213,81.491,81.428,0.49089185]
[1772993822194,0.2982213,81.51,81.433,0.49089185]
[1772993822393,0.2982213,81.51,81.438,0.49089185]
[1772993822596,0.2982213,81.51,81.437,0.28432314]
[1772993822597,0.2982213,81.51,81.441,0.49089185]
[1772993822904,0.2982213,81.51,81.436,3.69383402]
[1772993822905,0.2982213,81.51,81.444,0.49768207]
[1772993823208,0.2982213,81.51,81.446,0.49768207]
[1772993823396,0.2982213,81.51,81.448,0.28432314]
[1772993823592,0.2982213,81.51,81.451,0.49768207]
[1772993823907,0.2982213,81.516,81.457,0.49768207]
[1772993824691,0.2982213,81.524,81.457,0.49768207]
[1772993824895,0.2982213,81.519,81.459,0.49768207]
[1772993825808,0.2982213,81.517,81.464,0.48836579]
[1772993826015,0.2982213,81.517,81.465,0.48836579]
[1772993828003,0.2982213,81.529,81.47,0.48836579]
[1772993828208,0.2982213,81.529,81.471,1.7157964]
[1772993828404,0.2982213,81.529,81.473,0.48836579]
[1772993828607,0.2982213,81.538,81.475,0.48836579]
[1772993828809,0.2982213,81.538,81.477,0.48836579]
[1772993829814,0.2982213,81.544,81.478,1.5116483]
[1772993829994,0.2982213,81.544,81.485,0.48836579]
[1772993830200,0.2982213,81.544,81.487,0.48836579]
[1772993830515,0.2982213,81.552,81.487,0.48836579]
[1772993831409,0.2982213,81.552,81.489,0.48836579]
[1772993831605,0.2982213,81.552,81.495,0.48836579]
[1772993833904,0.2982213,81.552,81.485,104.9]
[1772993833905,0.2982213,81.549,81.498,0.48836579]
[1772993834106,0.47899233,81.539,81.496,40.83724108]
[1772993834303,0.47899233,81.539,81.496,10.16088887]
[1772993834510,0.47899233,81.529,81.496,10.16088887]
[1772993834698,0.47899233,81.519,81.448,42.97220312]
[1772993835110,0.47899233,81.519,81.452,0.28432314]
[1772993835421,0.47899233,81.519,81.451,3.69383402]
[1772993835815,0.47899233,81.507,81.456,3.69383402]
[1772993836020,0.47899233,81.499,81.453,43.45793105]
[1772993836323,0.47899233,81.499,81.454,0.48836579]
[1772993836709,0.47899233,81.489,81.453,12.27701864]
[1772993837114,0.47899233,81.496,81.454,0.48836579]
[1772993837413,0.47899233,81.496,81.455,0.48836579]
[1772993838925,0.47899233,81.496,81.458,0.48836579]
[1772993840327,0.47899233,81.494,81.457,0.28432314]
[1772993841135,0.47899233,81.489,81.458,12.27626506]
[1772993842240,0.47899233,81.489,81.458,12.76463085]
[1772993844961,0.47899233,81.488,81.458,12.76463085]
[1772993846247,0.47899233,81.488,81.459,0.48836579]
[1772993847955,0.47899233,81.486,81.442,0.48836579]
[1772993848578,3.69383402,81.515,81.445,0.48836579]
[1772993848773,0.47899233,81.509,81.447,0.48836579]
[1772993849774,4.82068203,81.51,81.446,0.28432314]
[1772993849775,0.47899233,81.507,81.45,0.48836579]
[1772993851881,0.47899233,81.507,81.453,0.48836579]
[1772993852089,0.47899233,81.507,81.456,0.48836579]
[1772993852281,0.47899233,81.505,81.456,0.48836579]
[1772993856292,0.47899233,81.505,81.459,0.478418]
[1772993859278,0.47899233,81.505,81.458,0.28432314]
[1772993859279,0.47899233,81.505,81.461,0.28432314]
[1772993859480,0.47899233,81.505,81.462,0.478418]
[1772993860690,0.46669006,81.503,81.462,0.478418]
[1772993861495,0.46669006,81.501,81.464,0.478418]
[1772993863278,12.26963755,81.502,81.463,42.96429053]
[1772993863279,0.46669006,81.499,81.463,12.27551158]
[1772993863479,0.46669006,81.497,81.463,12.27551158]
[1772993864097,0.46669006,81.497,81.459,12.7545312]
[1772993864898,0.46669006,81.497,81.461,0.478418]
[1772993865580,0.46669006,81.497,81.463,0.478418]
[1772993866901,0.46669006,81.497,81.465,0.478418]
[1772993869086,0.46669006,81.497,81.467,0.478418]
[1772993872097,0.46669006,81.495,81.468,12.27475818]
[1772993874085,0.46669006,81.493,81.462,0.478418]
[1772993875405,0.46669006,81.493,81.461,12.27581296]
[1772993875903,0.46669006,81.489,81.461,12.27581296]
[1772993876081,0.46669006,81.487,81.457,12.27641577]
[1772993876285,0.46669006,81.487,81.458,0.478418]
[1772993880296,0.46669006,81.487,81.459,12.27611436]
[1772993880498,0.46669006,81.487,81.46,0.478418]
[1772993880899,0.46669006,81.485,81.459,12.27611436]
[1772993881105,0.46669006,81.485,81.447,30.69452373]
[1772993881314,0.46669006,81.485,81.447,31.17294173]
[1772993881504,0.46669006,81.485,81.448,0.478418]
[1772993882297,0.46669006,81.485,81.452,0.478418]
[1772993883916,0.46669006,81.485,81.454,0.4762609]
[1772993886300,0.46669006,81.485,81.456,0.47051493]
[1772993888016,34.0795251,81.517,81.457,0.47051493]
[1772993888214,4.82010336,81.53,81.457,0.47051493]
[1772993888516,4.82010336,81.52,81.46,0.47051493]
[1772993890024,0.31989703,81.519,81.46,0.47051493]
[1772993890617,0.31989703,81.517,81.463,0.47051493]
[1772993892298,0.31989703,81.515,81.466,0.47051493]
[1772993895423,0.31989703,81.513,81.469,0.47051493]
[1772993897721,0.31989703,81.513,81.472,0.47051493]
[1772993898306,12.26813229,81.512,81.472,0.47051493]
[1772993898601,0.31989703,81.511,81.472,0.47051493]
[1772993899827,0.31989703,81.509,81.474,0.47051493]
[1772993902726,0.31989703,81.507,81.461,12.27581296]
[1772993902935,0.31989703,81.489,81.461,12.27581296]
[1772993903122,0.31989703,81.489,81.405,0.47051493]
[1772993903430,0.31989703,81.439,81.405,43.46541695]
[1772993903611,0.31989703,81.439,81.406,0.47051493]
[1772993904716,0.31989703,81.439,81.407,12.28395592]
[1772993905027,0.31989703,81.437,81.407,12.28395592]
[1772993908330,0.31989703,81.437,81.408,0.47051493]
[1772993909021,0.31989703,81.435,81.403,12.28453554]
[1772993909530,0.31989703,81.433,81.4,0.1]
[1772993909826,0.31989703,81.429,81.401,0.47051493]
[1772993910729,0.31989703,81.429,81.4,0.1]
[1772993911321,0.31989703,81.429,81.4,0.57051493]
[1772993912229,0.31989703,81.441,81.4,0.57051493]
[1772993913114,0.31989703,81.439,81.4,0.57051493]
[1772993913314,0.31989703,81.439,81.401,42.99701477]
[1772993913514,0.31989703,81.439,81.402,0.45065221]
[1772993915634,0.31989703,81.438,81.404,0.45065221]
[1772993917136,0.31989703,81.437,81.404,0.45065221]
[1772993917725,0.31989703,81.437,81.406,0.45065221]
[1772993918115,0.31989703,81.435,81.406,0.45065221]
[1772993920236,0.31989703,81.435,81.407,12.28395592]
[1772993920421,0.31989703,81.435,81.408,0.45065221]
[1772993922541,0.31989703,81.435,81.41,0.45065221]
[1772993924437,0.31989703,81.435,81.411,12.28335237]
[1772993924641,0.31989703,81.435,81.412,0.45065221]
[1772993924837,0.31989703,81.435,81.411,12.28335237]
[1772993924838,4.82010336,81.42,81.4,0.1]
[1772993925038,0.31989703,81.419,81.4,0.1]
[1772993926426,0.31989703,81.419,81.401,0.45065221]
[1772993928126,0.31989703,81.418,81.4,0.1]
[1772993929738,0.31989703,81.416,81.4,0.1]
[1772993931751,0.31989703,81.414,81.4,0.1]
[1772993932345,4.82915671,81.4,81.373,0.45065221]
[1772993932548,4.82915671,81.4,81.377,12.28834043]
[1772993933446,12.2851632,81.399,81.377,12.28834043]
[1772993933647,12.28461796,81.403,81.377,12.78085466]
[1772993934251,12.28461796,81.403,81.377,12.28834043]
[1772993934751,4.82915671,81.4,81.377,12.28834043]
[1772993935252,4.82915671,81.41,81.38,0.59251423]
[1772993935435,4.82915671,81.41,81.38,0.1]
[1772993935753,4.82915671,81.41,81.38,0.59251423]
[1772993936265,4.82915671,81.42,81.38,0.59251423]
[1772993936960,42.98328563,81.427,81.38,0.59251423]
[1772993936961,12.28093875,81.427,81.382,0.49251423]
[1772993939053,12.28093875,81.427,81.384,0.49251423]
[1772993939239,12.28065168,81.429,81.385,0.49251423]
[1772993939741,12.27992111,81.434,81.385,0.49251423]
[1772993939941,12.27992111,81.434,81.38,0.1]
[1772993939942,4.82915671,81.4,81.38,0.1]
[1772993940143,0.28432314,81.428,81.38,0.1]
[1772993940345,4.82915671,81.4,81.38,0.1]
[1772993941167,12.2851632,81.399,81.38,0.1]
[1772993941344,4.82915671,81.39,81.38,0.1]
[1772993941667,12.2851632,81.399,81.38,0.1]
[1772993942743,0.28432314,81.433,81.38,0.59251423]
[1772993942973,4.82915671,81.4,81.38,0.1]
[1772993943264,4.82915671,81.41,81.38,0.1]
[1772993943445,4.82915671,81.41,81.38,0.59251423]
[1772993944143,4.82915671,81.42,81.381,0.49251423]
[1772993945064,12.28214544,81.419,81.383,0.49251423]
[1772993947562,4.82915671,81.42,81.385,0.49611109]
[1772993948770,4.82915671,81.43,81.385,0.49611109]
[1772993949067,4.82915671,81.42,81.381,0.49611109]
[1772993949971,42.98750905,81.419,81.383,0.49611109]
[1772993952059,4.82915671,81.39,81.293,7.46985544]
[1772993952264,3.69383402,81.382,81.304,0.49611109]
[1772993952464,4.82915671,81.34,81.304,0.49611109]
[1772993952665,4.82915671,81.35,81.304,0.49611109]
[1772993953278,4.82915671,81.34,81.304,0.49611109]
[1772993953561,4.82915671,81.35,81.304,0.49611109]
[1772993954471,4.82915671,81.35,81.293,7.46985544]
[1772993954472,12.2927141,81.349,81.306,0.49611109]
[1772993955374,12.2927141,81.349,81.294,0.49611109]
[1772993955375,4.82915671,81.33,81.294,0.49611109]
[1772993955587,4.82915671,81.33,81.295,0.49611109]
[1772993956154,4.82915671,81.33,81.293,19.77098545]
[1772993956155,12.2972491,81.319,81.293,7.46985544]
[1772993956556,4.82915671,81.31,81.29,0.1]
[1772993956778,43.04037186,81.319,81.29,0.1]
[1772993957493,30.73515346,81.341,81.291,0.49611109]
[1772993957667,4.82915671,81.33,81.291,0.49611109]
[1772993957863,0.14216157,81.34,81.292,0.49611109]
[1772993958195,43.02714397,81.344,81.293,0.49611109]
[1772993958492,4.82915671,81.34,81.295,0.49611109]
[1772993958864,4.82915671,81.33,81.295,0.49611109]
[1772993959262,0.28432314,81.343,81.295,0.49611109]
[1772993959462,4.82915671,81.34,81.295,0.49611109]
[1772993959663,49.11742287,81.438,81.295,0.49611109]
[1772993959892,4.82915671,81.35,81.295,0.49611109]
[1772993960275,4.82915671,81.36,81.298,0.49611109]
[1772993960591,4.82915671,81.35,81.298,0.49611109]
[1772993961377,4.82915671,81.36,81.298,0.49611109]
[1772993961686,12.29074998,81.362,81.301,0.49611109]
[1772993962479,0.28432314,81.378,81.307,0.49611109]
[1772993962480,4.82915671,81.36,81.307,0.49611109]
[1772993964286,4.82915671,81.37,81.31,0.49611109]
[1772993964987,3.69383402,81.383,81.31,0.49611109]
[1772993964988,4.82915671,81.38,81.31,0.49611109]
[1772993965362,4.82915671,81.37,81.31,0.49611109]
[1772993966262,12.28969263,81.369,81.313,0.49611109]
[1772993968071,43.01392421,81.369,81.313,0.49611109]
[1772993968390,4.82915671,81.38,81.316,0.49611109]
[1772993968578,4.82915671,81.37,81.316,0.49611109]
[1772993969490,4.82915671,81.38,81.316,0.49611109]
[1772993969695,12.2874275,81.384,81.319,0.49611109]
[1772993970494,30.71481576,81.394,81.324,0.49611109]
[1772993970877,4.82915671,81.39,81.325,0.49611109]
[1772993971278,30.71481576,81.394,81.325,0.49611109]
[1772993971798,12.28457608,81.403,81.325,0.49611109]
[1772993972104,30.70648979,81.417,81.328,0.49611109]
[1772993972398,30.70648979,81.417,81.323,3.69383402]
[1772993972399,12.28259801,81.416,81.331,0.49611109]
[1772993972698,12.28259801,81.416,81.339,0.49251423]
[1772993972898,12.28259801,81.416,81.341,0.49251423]
[1772993973092,12.28259801,81.416,81.342,0.49251423]
[1772993973788,4.82915671,81.41,81.342,0.49251423]
[1772993974417,12.28259801,81.416,81.342,0.49251423]
[1772993974602,12.28063711,81.429,81.348,0.49251423]
[1772993974781,42.9822299,81.429,81.35,0.49251423]
[1772993976380,85.5822299,81.429,81.354,3.69383402]
[1772993976575,85.5822299,81.429,81.355,0.49251423]
[1772993977385,42.9822299,81.429,81.358,0.49251423]
[1772993977581,12.28063711,81.429,81.36,0.49251423]
[1772993977781,12.28063711,81.429,81.363,0.49251423]
[1772993978599,42.9822299,81.429,81.363,0.49251423]
[1772993981201,4.82915671,81.44,81.369,0.49251423]
[1772993982807,4.82915671,81.43,81.369,0.49251423]
[1772993983701,43.25863677,81.444,81.371,0.28432314]
[1772993983908,4.82915671,81.43,81.372,0.49251423]
[1772993986604,12.28063711,81.429,81.374,0.77683737]
[1772993986917,12.28063711,81.429,81.375,0.49251423]
[1772993987107,42.9822299,81.429,81.375,0.49251423]
[1772993991810,4.82810481,81.44,81.378,0.49251423]
[1772993992012,42.6,81.439,81.378,0.49251423]
[1772993993610,42.97747979,81.438,81.381,0.49251423]
[1772993996097,42.97747979,81.438,81.38,0.28432314]
[1772993996098,42.97747979,81.438,81.384,0.49251423]
[1772993996999,12.27762157,81.449,81.385,3.69383402]
[1772993997199,4.82810481,81.47,81.387,0.49251423]
[1772993998011,30.68721863,81.468,81.391,3.69383402]
[1772993998318,30.68721863,81.468,81.393,0.49251423]
[1772993999306,30.68721863,81.468,81.398,0.28432314]
[1772993999506,30.68721863,81.468,81.399,0.49251423]
[1772994000416,4.82810481,81.44,81.399,0.49251423]
[1772994000723,4.82810481,81.44,81.395,0.49251423]
[1772994001310,42.97695207,81.439,81.397,0.49251423]
[1772994001612,12.27912916,81.439,81.397,0.49251423]
[1772994002416,30.69407024,81.449,81.398,0.49251423]
[1772994002624,12.27611436,81.459,81.398,0.49251423]
[1772994003324,4.82810481,81.46,81.401,0.49251423]
[1772994003507,3.69383402,81.476,81.401,0.49251423]
[1772994003707,4.82810481,81.47,81.401,0.49251423]
[1772994004316,30.68237604,81.48,81.404,0.49251423]
[1772994004625,30.68237604,81.48,81.407,0.49251423]
[1772994004824,35.51048085,81.48,81.407,0.49251423]
[1772994005319,47.78343126,81.48,81.412,0.49251423]
[1772994005521,47.78343126,81.48,81.413,0.49251423]
[1772994005705,12.27295041,81.48,81.413,0.49251423]
[1772994005906,12.27295041,81.48,81.416,0.49251423]
[1772994006107,12.27295041,81.48,81.418,0.49251423]
[1772994006321,12.27209716,81.486,81.421,0.49251423]
[1772994006526,12.27209716,81.486,81.423,0.49251423]
[1772994006726,12.27209716,81.486,81.422,0.28432314]
[1772994006727,12.2700892,81.499,81.426,0.49251423]
[1772994006919,12.26858383,81.509,81.434,0.49251423]
[1772994007124,12.26858383,81.509,81.435,0.49251423]
[1772994007312,12.26858383,81.509,81.44,0.49251423]
[1772994007628,12.26858383,81.509,81.441,0.49251423]
[1772994008411,12.26858383,81.509,81.447,0.45074914]
[1772994008612,12.46849226,81.51,81.447,0.45074914]
[1772994008813,0.2,81.51,81.447,0.45074914]
[1772994009713,0.46758184,81.509,81.45,0.45074914]
[1772994010420,0.46758184,81.509,81.456,0.45074914]
[1772994010620,0.2,81.51,81.457,0.45074914]
[1772994011531,0.66758184,81.51,81.457,0.45074914]
[1772994011729,0.46758184,81.509,81.457,0.45074914]
[1772994012839,0.2,81.51,81.46,0.45074914]
[1772994013034,0.46758184,81.509,81.46,0.45074914]
[1772994014723,0.46758184,81.509,81.461,104.34441019]
[1772994014939,0.2,81.51,81.463,0.45074914]
[1772994015345,0.46758184,81.522,81.466,0.45074914]
[1772994015847,0.46758184,81.522,81.464,4.9213701]
[1772994015848,0.46758184,81.529,81.469,0.45074914]
[1772994016148,0.46758184,81.529,81.472,0.45074914]
[1772994016341,0.46758184,81.529,81.474,0.28432314]
[1772994016654,0.46758184,81.529,81.464,3.69383402]
[1772994016655,0.2,81.53,81.477,0.45074914]
[1772994016851,0.46758184,81.529,81.482,0.45074914]
[1772994017043,0.46758184,81.529,81.483,0.45074914]
[1772994017545,0.2,81.53,81.486,0.45074914]
[1772994019850,0.46758184,81.529,81.489,0.45074914]
[1772994020435,0.46758184,81.537,81.489,0.45074914]
[1772994020635,0.46758184,81.536,81.489,0.45074914]
[1772994022155,0.46758184,81.534,81.492,0.45074914]
[1772994024257,0.46758184,81.534,81.495,0.45074914]
[1772994024756,0.46758184,81.532,81.495,0.45074914]
[1772994026659,0.46758184,81.532,81.498,0.45074914]
[1772994026982,0.46758184,81.558,81.498,0.45074914]
[1772994027660,0.46758184,81.558,81.497,0.28432314]
[1772994027661,0.46758184,81.569,81.501,0.45074914]
[1772994027954,0.46758184,81.569,81.499,3.69383402]
[1772994027955,0.46758184,81.569,81.504,0.45074914]
[1772994028146,0.46758184,81.569,81.507,0.45074914]
[1772994028456,0.46758184,81.569,81.515,0.45074914]
[1772994028650,0.46758184,81.569,81.518,0.45074914]
[1772994028841,0.46758184,81.569,81.521,0.45074914]
[1772994029043,0.46758184,81.569,81.523,0.45074914]
[1772994029255,0.46758184,81.569,81.526,0.45074914]
[1772994029742,0.2,81.57,81.528,0.59291071]